bitfinex-derivatives/quotes_SOLF0:USTF0_20241216
["timestamp","ask_amount","ask_price","bid_price","bid_amount"]
[1734347024533,256.7960144,217.72,217.61,5.41603949]
[1734347024534,2.2977,217.69,217.61,5.41603949]
[1734347025437,2.2977,217.69,217.64,2.298]
[1734347025637,2.06,217.72,217.61,5.41603949]
[1734347025835,2.2974,217.71,217.62,11.1571392]
[1734347026031,1.5974,217.75,217.66,2.2979]
[1734347026236,2.06,217.73,217.66,2.2979]
[1734347026835,2.2974,217.71,217.66,2.2979]
[1734347027939,2.2975,217.7,217.66,2.2979]
[1734347029631,2.2975,217.7,217.64,2.06]
[1734347029832,2.2975,217.7,217.66,2.2979]
[1734347030253,1.5974,217.75,217.64,2.06]
[1734347030433,2.2973,217.73,217.68,2.2976]
[1734347031640,1.5974,217.75,217.7,2.2974]
[1734347031641,2.2971,217.75,217.7,2.2974]
[1734347031841,2.06,217.76,217.7,2.2974]
[1734347032136,2.06,217.76,217.68,11.1571392]
[1734347032435,2.06,217.76,217.71,2.2974]
[1734347032436,2.297,217.75,217.71,2.2974]
[1734347033435,2.2969,217.76,217.68,13.2171392]
[1734347033640,2.06,217.79,217.71,11.1571392]
[1734347033836,2.9549,217.8,217.71,11.1571392]
[1734347034047,2.9549,217.8,217.72,2.06]
[1734347034247,4.3563,217.81,217.76,2.2969]
[1734347034743,4.3563,217.81,217.77,2.2967]
[1734347034949,2.2962,217.83,217.74,11.1571392]
[1734347035249,3.589,217.85,217.79,2.2964]
[1734347035642,1.529,217.85,217.74,11.1571392]
[1734347035951,1.529,217.85,217.8,2.2964]
[1734347036449,3.8249,217.85,217.8,2.2964]
[1734347036651,14.1089392,217.88,217.82,2.2962]
[1734347036851,2.06,217.87,217.77,13.2171392]
[1734347037253,2.06,217.87,217.83,2.2961]
[1734347037848,2.2959,217.86,217.8,2.2964]
[1734347038049,2.2959,217.86,217.77,13.2171392]
[1734347038638,5.54491933,217.89,217.8,11.1571392]
[1734347038639,2.2955,217.89,217.8,11.1571392]
[1734347038783,1.499,217.9,217.83,11.1571392]
[1734347039148,1.499,217.9,217.86,2.2957]
[1734347039346,2.06,217.93,217.83,11.1571392]
[1734347039549,5.3427,217.94,217.88,2.2955]
[1734347039751,5.3427,217.94,217.83,11.1571392]
[1734347039947,5.3427,217.94,217.84,2.06]
[1734347040351,5.3427,217.94,217.87,2.2957]
[1734347040555,5.3427,217.94,217.84,2.06]
[1734347040753,5.3427,217.94,217.85,11.1571392]
[1734347041561,2.2951,217.93,217.88,2.2955]
[1734347042265,2.2953,217.91,217.86,2.2957]
[1734347042458,2.2953,217.91,217.78,5.60292962]
[1734347042459,3.0477,217.94,217.82,13.2171392]
[1734347042658,2.06,217.91,217.82,11.1571392]
[1734347043361,2.06,217.91,217.84,2.2959]
[1734347043362,2.2955,217.89,217.84,2.2959]
[1734347045957,2.06,217.91,217.78,5.60292962]
[1734347045958,2.06,217.91,217.79,11.1571392]
[1734347046164,1.5396,217.88,217.76,11.1571392]
[1734347046356,2.06,217.87,217.77,2.06]
[1734347046663,2.06,217.87,217.77,7.4430151]
[1734347046867,2.06,217.87,217.77,5.3830151]
[1734347047465,2.2961,217.84,217.79,2.2965]
[1734347047669,2.06,217.87,217.76,11.1571392]
[1734347048172,1.4529,217.86,217.76,11.1571392]
[1734347048467,2.2961,217.83,217.78,2.2966]
[1734347051969,7.13190587,217.83,217.76,9.42870587]
[1734347052371,2.2958,217.87,217.82,9.42800587]
[1734347052575,2.2958,217.87,217.84,7.13190587]
[1734347053198,8.67150587,217.88,217.78,2.06]
[1734347053378,7.13190587,217.86,217.8,7.13190587]
[1734347053572,2.06,217.85,217.8,7.13190587]
[1734347053771,2.06,217.85,217.79,2.2965]
[1734347053973,2.2962,217.82,217.78,2.2966]
[1734347054174,2.06,217.85,217.75,13.20122542]
[1734347054577,2.2961,217.83,217.78,2.2966]
[1734347055775,13.20122542,217.85,217.69,13.20122542]
[1734347055972,1.4478,217.82,217.69,13.20122542]
[1734347056167,2.2966,217.78,217.73,2.2971]
[1734347056678,2.06,217.81,217.72,11.14122542]
[1734347056874,2.06,217.81,217.76,2.2968]
[1734347057576,2.2964,217.8,217.76,2.2968]
[1734347057772,2.06,217.81,217.75,2.2969]
[1734347059476,2.06,217.81,217.73,2.2971]
[1734347059477,2.2967,217.78,217.73,2.2971]
[1734347059667,2.06,217.81,217.73,2.2971]
[1734347059871,1.4961,217.8,217.73,2.2971]
[1734347060076,2.2967,217.78,217.73,2.2971]
[1734347061377,2.2968,217.77,217.73,2.2971]
[1734347061573,2.06,217.79,217.7,2.2974]
[1734347062070,2.297,217.75,217.7,2.2974]
[1734347063773,2.297,217.75,217.69,5.48055185]
[1734347063974,2.297,217.75,217.71,2.2974]
[1734347065072,2.2969,217.77,217.72,2.2973]
[1734347065273,2.06,217.79,217.71,11.14122542]
[1734347065776,2.2965,217.8,217.74,11.14122542]
[1734347065975,3.5278,217.82,217.74,11.14122542]
[1734347065976,2.08,217.82,217.74,11.14122542]
[1734347066176,1.5257,217.84,217.74,11.14122542]
[1734347066476,2.2962,217.82,217.78,2.2965]
[1734347067270,1.5257,217.84,217.76,2.2968]
[1734347067480,1.5257,217.84,217.68,5.49208565]
[1734347067481,11.14122542,217.83,217.68,5.49208565]
[1734347067683,11.14122542,217.83,217.69,13.22122542]
[1734347067981,1.559,217.82,217.69,13.22122542]
[1734347068180,3.639,217.82,217.72,11.14122542]
[1734347068381,3.8553,217.82,217.77,2.2967]
[1734347068984,2.2963,217.81,217.77,2.2967]
[1734347070688,1.559,217.82,217.73,2.08]
[1734347070978,2.2965,217.8,217.76,2.2968]
[1734347071681,1.5223,217.86,217.78,11.14122542]
[1734347072182,3.8181,217.86,217.81,2.2962]
[1734347072881,2.2959,217.85,217.81,2.2962]
[1734347073185,1.5223,217.86,217.78,11.14122542]
[1734347073394,1.5223,217.86,217.78,2.2965]
[1734347073784,2.2961,217.83,217.78,2.2965]
[1734347074484,2.2961,217.83,217.76,2.06]
[1734347074686,2.2961,217.83,217.79,2.2965]
[1734347076389,2.296,217.84,217.8,2.2964]
[1734347079240,1.5223,217.86,217.79,2.2965]
[1734347079241,2.2961,217.83,217.79,2.2965]
[1734347080589,1.5223,217.86,217.79,2.2965]
[1734347080590,2.296,217.84,217.79,2.2965]
[1734347080796,1.5223,217.86,217.76,2.06]
[1734347080991,1.5223,217.86,217.77,5.02249624]
[1734347081191,1.5223,217.86,217.76,2.06]
[1734347081393,1.5223,217.86,217.77,5.02237516]
[1734347081593,1.5223,217.86,217.76,2.06]
[1734347081794,1.5223,217.86,217.77,5.02233273]
[1734347082103,1.5223,217.86,217.8,7.12887039]
[1734347082392,1.5223,217.86,217.76,2.06]
[1734347082788,7.12887039,217.83,217.76,7.12887039]
[1734347083093,2.2964,217.81,217.76,9.42567039]
[1734347083293,2.2964,217.81,217.76,7.12887039]
[1734347084497,2.2964,217.81,217.77,2.2967]
[1734347084898,2.2964,217.81,217.76,7.12887039]
[1734347085494,2.2963,217.81,217.76,9.42567039]
[1734347086102,2.2965,217.8,217.76,2.2968]
[1734347086302,2.2965,217.8,217.76,9.42567039]
[1734347088191,2.2965,217.8,217.77,2.2967]
[1734347090903,7.12887039,217.83,217.77,2.2967]
[1734347090904,2.2963,217.81,217.77,2.2967]
[1734347091395,7.12887039,217.83,217.76,7.12887039]
[1734347091600,2.2962,217.82,217.78,2.2966]
[1734347099306,14.79032981,217.84,217.77,7.12887039]
[1734347099507,14.79032981,217.84,217.77,9.42557039]
[1734347100206,7.12887039,217.82,217.75,2.2969]
[1734347100409,7.12887039,217.76,217.69,7.12887039]
[1734347100607,2.2971,217.74,217.69,7.12887039]
[1734347101210,7.12887039,217.75,217.71,2.2974]
[1734347101507,2.06,217.76,217.71,2.2974]
[1734347102414,2.297,217.75,217.71,2.2974]
[1734347103413,2.2967,217.78,217.73,9.42597039]
[1734347104514,7.12887039,217.75,217.66,5.45252196]
[1734347104717,7.12887039,217.75,217.67,5.09813125]
[1734347104718,7.12887039,217.73,217.67,5.09813125]
[1734347104918,7.12887039,217.73,217.66,9.42677039]
[1734347105212,7.12887039,217.73,217.67,5.09843789]
[1734347105508,7.12887039,217.71,217.58,2.6618]
[1734347105718,7.12887039,217.69,217.61,7.12887039]
[1734347105906,2.2981,217.65,217.62,5.09653483]
[1734347106106,9.18887039,217.67,217.63,5.09653483]
[1734347106410,9.18887039,217.67,217.61,7.12887039]
[1734347106411,2.06,217.67,217.61,7.12887039]
[1734347106607,2.06,217.67,217.62,5.0928582]
[1734347106807,2.06,217.67,217.61,7.12887039]
[1734347107011,2.06,217.67,217.62,5.09286027]
[1734347107218,2.06,217.67,217.61,7.12887039]
[1734347107415,2.2979,217.66,217.61,9.42727039]
[1734347108017,2.06,217.67,217.63,7.12887039]
[1734347108516,9.18887039,217.7,217.63,7.12887039]
[1734347109516,2.2976,217.69,217.64,2.2981]
[1734347109719,9.18887039,217.7,217.63,7.12887039]
[1734347110323,7.12887039,217.68,217.63,7.12887039]
[1734347110619,7.12887039,217.68,217.61,7.12887039]
[1734347111018,2.298,217.65,217.61,7.12887039]
[1734347111321,7.12887039,217.66,217.52,2.9472]
[1734347111520,7.12887039,217.66,217.58,7.12887039]
[1734347111826,2.06,217.65,217.59,5.01088534]
[1734347112022,2.06,217.65,217.58,7.12887039]
[1734347112225,7.12887039,217.64,217.55,2.06]
[1734347112422,7.12887039,217.64,217.56,7.12887039]
[1734347113030,7.12887039,217.64,217.54,2.06]
[1734347113031,7.12887039,217.6,217.54,9.42797039]
[1734347113327,7.12887039,217.6,217.53,7.12887039]
[1734347113527,7.12887039,217.6,217.53,9.42817039]
[1734347113528,2.2988,217.58,217.53,9.42817039]
[1734347114023,7.12887039,217.6,217.53,7.12887039]
[1734347114223,7.12887039,217.6,217.54,2.2991]
[1734347114921,7.12887039,217.6,217.53,7.12887039]
[1734347114922,1.4783,217.63,217.57,7.12887039]
[1734347115126,1.5411,217.65,217.59,7.12887039]
[1734347115127,2.08,217.64,217.59,7.12887039]
[1734347115328,2.08,217.64,217.57,7.12887039]
[1734347115532,2.2985,217.61,217.55,9.42787039]
[1734347115725,9.42737039,217.61,217.55,9.42787039]
[1734347115931,2.2985,217.61,217.55,2.299]
[1734347116233,13.24485258,217.64,217.55,2.299]
[1734347116526,13.24485258,217.64,217.53,2.2992]
[1734347116826,13.24485258,217.64,217.45,14.30365258]
[1734347116827,11.16485258,217.58,217.45,14.30365258]
[1734347117027,3.5908,217.57,217.45,14.30365258]
[1734347117330,2.2991,217.55,217.45,14.30365258]
[1734347117936,2.2993,217.53,217.45,14.30365258]
[1734347118124,2.08,217.53,217.45,11.16485258]
[1734347118324,2.08,217.53,217.45,13.46485258]
[1734347118527,2.2995,217.51,217.44,7.50411466]
[1734347118923,2.2995,217.51,217.44,5.42411466]
[1734347119124,2.08,217.53,217.42,11.16485258]
[1734347119430,2.2996,217.5,217.42,1.19728038]
[1734347119625,17.39599586,217.49,217.45,2.3001]
[1734347119825,17.39599586,217.48,217.42,6.59269018]
[1734347120029,17.39599586,217.47,217.42,6.59269018]
[1734347120231,17.39599586,217.46,217.42,6.59269018]
[1734347120435,16.91811404,217.45,217.42,6.59269018]
[1734347120632,16.91811404,217.44,217.42,6.59269018]
[1734347120834,16.91811404,217.43,217.42,8.89319018]
[1734347121034,6.83019241,217.43,217.42,8.89319018]
[1734347121230,2.2995,217.51,217.42,6.59269018]
[1734347121231,16.91811404,217.49,217.42,6.59269018]
[1734347121434,16.91811404,217.48,217.45,2.3]
[1734347121633,16.91811404,217.47,217.45,11.16485258]
[1734347121841,11.36859351,217.46,217.45,11.16485258]
[1734347122034,1.28067188,217.46,217.45,11.16485258]
[1734347122231,1.5108,217.57,217.45,11.16485258]
[1734347122429,3.5908,217.57,217.48,11.16485258]
[1734347123342,1.5108,217.57,217.51,11.16485258]
[1734347123636,2.08,217.61,217.51,11.16485258]
[1734347123837,2.08,217.62,217.52,2.08]
[1734347124030,2.08,217.62,217.54,11.16485258]
[1734347124338,2.08,217.62,217.56,2.2989]
[1734347124539,2.08,217.62,217.54,11.16485258]
[1734347125128,2.08,217.62,217.58,2.2987]
[1734347125333,2.08,217.62,217.58,1.06268695]
[1734347126040,5.46847842,217.65,217.58,1.06268695]
[1734347126336,2.08,217.64,217.58,1.06268695]
[1734347126536,2.2982,217.63,217.58,1.06268695]
[1734347126735,2.08,217.64,217.57,2.2989]
[1734347127237,2.2983,217.62,217.57,2.2989]
[1734347127431,2.08,217.64,217.58,2.2988]
[1734347128032,2.2982,217.63,217.58,2.2988]
[1734347128339,2.08,217.64,217.54,11.16485258]
[1734347128535,2.08,217.64,217.59,2.2986]
[1734347130434,2.08,217.64,217.57,2.2988]
[1734347130641,13.24485258,217.64,217.51,11.16485258]
[1734347130839,13.24485258,217.64,217.52,2.08]
[1734347132037,11.16485258,217.61,217.52,2.08]
[1734347132238,2.08,217.6,217.48,14.81055258]
[1734347133340,11.16485258,217.58,217.45,11.16485258]
[1734347133539,11.16485258,217.58,217.46,7.07497638]
[1734347133741,11.16485258,217.58,217.46,2.08]
[1734347133935,2.08,217.57,217.46,2.08]
[1734347134639,2.2991,217.55,217.46,2.08]
[1734347135536,2.2991,217.55,217.49,2.2997]
[1734347135939,2.2991,217.55,217.46,2.08]
[1734347136135,2.08,217.57,217.46,2.08]
[1734347136336,2.08,217.57,217.48,11.16485258]
[1734347136538,5.474,217.59,217.53,2.2992]
[1734347136844,5.474,217.59,217.5,2.08]
[1734347137241,3.1752,217.59,217.5,2.08]
[1734347137445,2.2988,217.58,217.5,2.08]
[1734347138538,2.2988,217.58,217.53,2.2992]
[1734347142143,3.1752,217.59,217.5,2.08]
[1734347142343,1.6034,217.65,217.51,11.16485258]
[1734347142539,3.6834,217.65,217.52,5.0095474]
[1734347142842,3.6834,217.65,217.53,5.0095474]
[1734347143049,2.2982,217.63,217.54,2.08]
[1734347143745,2.2982,217.63,217.54,13.24485258]
[1734347144647,2.2982,217.63,217.59,2.2987]
[1734347144851,11.16485258,217.67,217.54,13.24485258]
[1734347145144,2.08,217.66,217.54,13.24485258]
[1734347145358,2.298,217.65,217.55,5.01694164]
[1734347145841,2.2982,217.64,217.54,13.24485258]
[1734347146039,2.08,217.66,217.55,7.09748065]
[1734347146239,2.08,217.66,217.56,5.01794411]
[1734347146444,2.298,217.65,217.55,2.08]
[1734347146644,2.298,217.65,217.6,2.2984]
[1734347147045,2.298,217.65,217.55,2.08]
[1734347147340,2.08,217.66,217.41,35.048112]
[1734347147543,11.16485258,217.42,217.23,11.16485258]
[1734347147742,11.16485258,217.39,217.24,2.3]
[1734347147945,11.16485258,217.36,217.26,5.61021627]
[1734347148245,11.16485258,217.36,217.17,1.461]
[1734347148246,11.16485258,217.33,217.23,2.3]
[1734347148447,307.3160144,217.53,217.25,11.16485258]
[1734347148448,2.3,217.49,217.25,11.16485258]
[1734347148641,5.41925367,217.42,217.31,11.16485258]
[1734347148842,11.16485258,217.46,217.32,4.021]
[1734347149144,2.3003,217.44,217.34,2.3013]
[1734347149749,2.3003,217.44,217.35,2.56]
[1734347149949,2.3003,217.44,217.34,2.3013]
[1734347150151,11.16485258,217.46,217.33,1.4856]
[1734347150452,2.3002,217.45,217.34,2.56]
[1734347150753,2.3002,217.45,217.34,4.0667]
[1734347151550,2.3002,217.45,217.35,2.3012]
[1734347151845,16.7451344,217.46,217.34,1.5067]
[1734347152052,16.7451344,217.46,217.36,2.56]
[1734347152245,2.3003,217.43,217.36,2.56]
[1734347152451,11.16485258,217.49,217.36,2.56]
[1734347153250,2.3001,217.46,217.36,2.56]
[1734347154354,11.16485258,217.49,217.34,12.67155258]
[1734347154556,2.3002,217.45,217.35,2.56]
[1734347154957,2.3002,217.45,217.35,4.8611]
[1734347156951,2.3003,217.44,217.35,2.3011]
[1734347157148,11.16485258,217.46,217.36,2.56]
[1734347157547,2.3004,217.43,217.34,1.5067]
[1734347157749,11.16485258,217.46,217.35,2.56]
[1734347158258,13.46485258,217.46,217.35,2.56]
[1734347158559,11.16485258,217.46,217.34,12.67155258]
[1734347158760,5.5673634,217.49,217.36,4.861]
[1734347158761,2.3002,217.45,217.36,4.861]
[1734347159156,11.16485258,217.5,217.37,11.16485258]
[1734347159359,11.16485258,217.5,217.39,2.3007]
[1734347159558,5.5366812,217.51,217.39,2.3007]
[1734347160158,2.2999,217.48,217.39,2.3007]
[1734347160758,2.2999,217.47,217.39,2.3007]
[1734347161060,5.5366812,217.51,217.37,11.16485258]
[1734347161361,1.5988,217.57,217.4,11.16485258]
[1734347161362,11.16485258,217.55,217.4,11.16485258]
[1734347161556,16.73909682,217.55,217.43,11.16485258]
[1734347161758,16.73909682,217.55,217.44,5.5676]
[1734347162056,2.2995,217.51,217.44,5.5676]
[1734347162259,16.73909682,217.55,217.45,2.56]
[1734347163658,2.2996,217.51,217.45,2.56]
[1734347164264,16.73909682,217.55,217.44,3.0076]
[1734347164464,11.16485258,217.52,217.45,2.56]
[1734347164654,2.2999,217.47,217.46,2.56]
[1734347165258,2.2999,217.47,217.08,6.9121]
[1734347165259,22.32970516,217.47,217.08,6.9121]
[1734347165459,22.32970516,217.47,217.25,2.3022]
[1734347165460,11.16485258,217.38,217.25,2.3022]
[1734347165661,13.72485258,217.38,217.25,2.3022]
[1734347166967,11.16485258,217.38,217.26,2.56]
[1734347168466,2.3012,217.35,217.27,2.302]
[1734347169968,11.16485258,217.41,217.27,11.16485258]
[1734347170569,2.301,217.37,217.28,2.3019]
[1734347171166,2.301,217.37,217.27,11.16485258]
[1734347171366,2.301,217.37,217.28,2.3018]
[1734347172263,2.3012,217.35,217.28,2.3018]
[1734347172470,2.3012,217.35,217.27,11.16485258]
[1734347172766,11.16485258,217.38,217.25,5.55577146]
[1734347172969,11.16485258,217.38,217.26,2.56]
[1734347173167,2.3017,217.31,217.26,2.56]
[1734347173372,11.16485258,217.38,217.26,2.56]
[1734347173870,2.3013,217.35,217.26,2.56]
[1734347174072,11.16485258,217.38,217.25,5.55577146]
[1734347174268,11.16485258,217.35,217.26,2.56]
[1734347174463,2.3017,217.3,217.26,2.56]
[1734347174865,2.3017,217.3,217.25,5.55577146]
[1734347175065,2.3017,217.3,217.26,2.56]
[1734347176467,11.16485258,217.35,217.26,2.56]
[1734347176872,11.16485258,217.35,217.23,5.7577]
[1734347177074,2.302,217.28,217.23,5.7577]
[1734347177376,11.16485258,217.32,217.21,11.16485258]
[1734347177576,2.56,217.31,217.21,11.16485258]
[1734347177771,2.3022,217.26,217.21,11.16485258]
[1734347178077,2.56,217.31,217.18,16.83135258]
[1734347178285,11.16485258,217.29,217.18,3.1065]
[1734347178766,2.3022,217.26,217.18,3.1065]
[1734347178971,11.16485258,217.29,217.18,3.1065]
[1734347179265,11.16485258,217.29,217.18,5.45864441]
[1734347179864,11.16485258,217.32,217.19,11.16485258]
[1734347180069,2.62,217.34,217.22,11.16485258]
[1734347180471,2.3018,217.29,217.22,13.46735258]
[1734347180868,2.3018,217.29,217.22,11.16485258]
[1734347181071,2.3018,217.29,217.23,2.3025]
[1734347182166,13.78485258,217.35,217.23,2.3025]
[1734347183369,13.78485258,217.35,217.22,13.78485258]
[1734347183673,13.78485258,217.35,217.24,2.3023]
[1734347184068,2.3018,217.3,217.24,2.3023]
[1734347184872,2.3018,217.29,217.24,2.3023]
[1734347185875,2.3018,217.29,217.23,2.3025]
[1734347186276,2.302,217.28,217.22,11.16485258]
[1734347186672,2.62,217.35,217.22,11.16485258]
[1734347187179,11.16485258,217.36,217.24,2.3023]
[1734347187371,2.62,217.36,217.22,11.16485258]
[1734347188381,11.16485258,217.38,217.22,11.16485258]
[1734347188585,2.62,217.37,217.22,11.16485258]
[1734347188977,2.3016,217.31,217.26,2.3021]
[1734347189985,2.3015,217.33,217.27,2.302]
[1734347190985,11.16485258,217.35,217.27,2.302]
[1734347191284,2.3015,217.32,217.27,2.302]
[1734347194187,2.3014,217.34,217.29,2.3018]
[1734347194780,2.3012,217.36,217.29,2.3018]
[1734347194981,11.16485258,217.38,217.29,2.3018]
[1734347195180,11.16485258,217.38,217.27,2.302]
[1734347195380,2.3017,217.31,217.27,2.302]
[1734347195787,2.3017,217.31,217.25,11.16485258]
[1734347196088,2.3017,217.31,217.26,2.3021]
[1734347197880,2.3013,217.35,217.28,2.3019]
[1734347198083,2.62,217.4,217.28,2.3019]
[1734347198282,254.7360144,217.43,217.31,11.16485258]
[1734347198483,256.0945744,217.5,217.34,11.16485258]
[1734347198484,2.3005,217.42,217.34,11.16485258]
[1734347198683,265.90086698,217.48,217.34,11.16485258]
[1734347199186,2.3002,217.45,217.37,2.3009]
[1734347199386,2.3002,217.45,217.38,2.62]
[1734347200089,11.16485258,217.48,217.38,2.62]
[1734347200392,2.3003,217.44,217.38,2.62]
[1734347200884,2.3003,217.44,217.38,4.9208]
[1734347201087,2.3,217.47,217.38,2.62]
[1734347201391,11.16485258,217.48,217.38,2.62]
[1734347201990,11.16485258,217.51,217.38,2.62]
[1734347202189,11.16485258,217.51,217.39,3.1485]
[1734347202791,2.2999,217.47,217.41,2.3005]
[1734347202988,11.16485258,217.48,217.39,3.1485]
[1734347203194,2.3003,217.44,217.39,3.1485]
[1734347203387,11.16485258,217.48,217.39,3.1485]
[1734347203792,2.2999,217.47,217.39,3.1485]
[1734347204888,2.2999,217.47,217.42,2.3004]
[1734347205490,2.3001,217.45,217.4,2.3006]
[1734347205690,11.16485258,217.48,217.38,2.62]
[1734347206094,11.16485258,217.48,217.37,2.62]
[1734347206496,11.16485258,217.48,217.36,5.51398673]
[1734347206794,11.16485258,217.48,217.37,2.62]
[1734347206995,16.78326251,217.51,217.37,13.78485258]
[1734347207798,2.3,217.46,217.37,13.78485258]
[1734347208600,2.3,217.46,217.39,2.3007]
[1734347208795,2.3,217.46,217.37,13.78485258]
[1734347209798,7.00574548,217.5,217.37,13.78485258]
[1734347210102,2.2999,217.47,217.37,13.78485258]
[1734347210497,2.2999,217.47,217.42,2.3004]
[1734347211193,7.00574548,217.5,217.43,11.16485258]
[1734347211392,7.00574548,217.53,217.43,11.16485258]
[1734347211593,7.00574548,217.55,217.46,11.16485258]
[1734347211793,7.00574548,217.55,217.49,11.16485258]
[1734347211994,7.00574548,217.6,217.49,11.16485258]
[1734347212303,2.2989,217.57,217.52,2.2994]
[1734347212498,2.2989,217.57,217.52,2.5]
[1734347213496,9.50574548,217.62,217.51,4.7995]
[1734347213497,7.00574548,217.62,217.51,4.7995]
[1734347213904,16.64381635,217.6,217.49,2.5]
[1734347214104,2.2994,217.53,217.49,2.5]
[1734347214700,13.66485258,217.57,217.45,2.5]
[1734347215000,7.00574548,217.56,217.45,2.5]
[1734347215594,2.2996,217.51,217.46,2.2999]
[1734347216002,2.2998,217.48,217.45,2.5]
[1734347216201,11.16485258,217.54,217.45,2.5]
[1734347216895,2.2996,217.51,217.46,2.3]
[1734347217602,2.2998,217.49,217.45,4.8001]
[1734347217804,11.16485258,217.54,217.45,2.5]
[1734347218108,11.16485258,217.54,217.43,2.5]
[1734347218697,2.3,217.47,217.43,4.8003]
[1734347220201,2.3,217.47,217.43,2.5]
[1734347220406,2.5,217.52,217.43,2.5]
[1734347220407,2.3001,217.46,217.43,2.5]
[1734347220602,2.5,217.52,217.4,11.16485258]
[1734347220802,11.16485258,217.51,217.38,3.947]
[1734347221005,11.16485258,217.54,217.4,11.16485258]
[1734347221209,13.66485258,217.54,217.4,11.16485258]
[1734347222110,2.2999,217.48,217.4,11.16485258]
[1734347222511,13.66485258,217.54,217.4,11.16485258]
[1734347222711,2.3001,217.46,217.4,11.16485258]
[1734347224710,13.66485258,217.54,217.44,2.3002]
[1734347225211,2.2998,217.49,217.45,2.3001]
[1734347225815,13.66485258,217.54,217.43,2.5]
[1734347226317,2.3001,217.45,217.43,2.5]
[1734347227521,11.16485258,217.51,217.41,1.564]
[1734347228413,2.3003,217.44,217.41,1.564]
[1734347228612,2.5,217.49,217.31,1.15081868]
[1734347228807,11.16485258,217.48,217.37,2.5]
[1734347229007,11.16485258,217.48,217.31,1.5645]
[1734347229210,11.16485258,217.48,217.37,2.3009]
[1734347229211,2.3006,217.41,217.37,2.3009]
[1734347229916,2.3006,217.41,217.38,3.7479]
[1734347230719,11.16485258,217.48,217.38,1.447]
[1734347230921,11.16485258,217.48,217.39,2.3008]
[1734347232816,2.3005,217.42,217.38,3.7479]
[1734347233019,11.16485258,217.48,217.38,1.447]
[1734347233213,11.16485258,217.48,217.36,11.16485258]
[1734347233415,11.16485258,217.48,217.35,4.8012]
[1734347233416,2.3009,217.39,217.35,4.8012]
[1734347233718,11.16485258,217.45,217.33,13.66485258]
[1734347234117,2.3007,217.4,217.36,2.3011]
[1734347234312,2.3007,217.4,217.33,13.66485258]
[1734347235119,2.3006,217.41,217.33,13.66485258]
[1734347236222,2.3006,217.41,217.33,19.28322716]
[1734347236726,257.2360144,217.47,217.36,2.301]
[1734347237023,2.3007,217.4,217.36,2.301]
[1734347237816,257.2360144,217.47,217.33,16.78322716]
[1734347238119,257.2360144,217.47,217.34,2.4]
[1734347238425,2.3009,217.39,217.34,4.7013]
[1734347238921,2.3009,217.38,217.34,4.7013]
[1734347239318,7.03190304,217.46,217.35,2.3011]
[1734347239715,7.03190304,217.46,217.34,2.4]
[1734347239924,7.03190304,217.46,217.34,4.7013]
[1734347241318,2.3009,217.39,217.34,4.7013]
[1734347241722,7.03190304,217.46,217.34,2.3013]
[1734347241923,7.15831901,217.43,217.36,7.15831901]
[1734347242126,2.3009,217.38,217.36,7.15831901]
[1734347242721,2.3008,217.39,217.36,7.15831901]
[1734347243026,7.03190304,217.46,217.4,2.3007]
[1734347243228,257.1360144,217.47,217.4,9.45901901]
[1734347243524,2.3001,217.45,217.4,9.45901901]
[1734347243730,257.1360144,217.47,217.4,9.45901901]
[1734347244030,257.1360144,217.47,217.4,2.3007]
[1734347244431,2.3004,217.43,217.4,2.3007]
[1734347245031,2.3005,217.42,217.39,2.3008]
[1734347245330,2.3005,217.42,217.37,11.18043732]
[1734347245331,7.05177969,217.46,217.35,2.4]
[1734347245723,7.05177969,217.46,217.35,4.7012]
[1734347246124,2.3008,217.39,217.35,4.7012]
[1734347246436,2.3008,217.39,217.35,2.3012]